fUST/lending_fUST_20250901
["ID","MTS","AMOUNT","RATE_DAILY","PERIOD"]
[382569336,1756671044643,-160.0,0.00017016,2]
[382569337,1756671044653,-420.0,0.00017025,2]
[382569338,1756671044663,-184.0,0.00017034,2]
[382569339,1756671044672,-151.0,0.0001707,2]
[382569340,1756671044682,-151.0,0.0001707,2]
[382569341,1756671044692,-151.943352,0.0001707,2]
[382569342,1756671044701,-151.0,0.0001707,2]
[382569343,1756671044711,-184.400329,0.0001707,2]
[382569344,1756671044720,-151.0,0.0001707,2]
[382569345,1756671044903,-151.0,0.0001707,2]
[382569346,1756671044913,-151.0,0.0001707,2]
[382569347,1756671044922,-500.0,0.00017073,2]
[382569348,1756671044932,-500.0,0.00017073,2]
[382569349,1756671044941,-500.0,0.00017073,2]
[382569350,1756671044951,-500.0,0.00017073,2]
[382569351,1756671044961,-500.0,0.00017073,2]
[382569352,1756671044970,-500.0,0.00017073,2]
[382569353,1756671044980,-403.58140753,0.00017073,2]
[382569354,1756671044989,-500.0,0.00017073,2]
[382569355,1756671044999,-500.0,0.00017073,2]
[382569356,1756671045009,-500.0,0.00017073,2]
[382569357,1756671045018,-3334.8,0.00017091,2]
[382569358,1756671045027,-1374.07,0.00017091,2]
[382569359,1756671045037,-480.0,0.00017091,2]
[382569360,1756671045047,-793.23,0.00017091,2]
[382569361,1756671045057,-4616.07,0.00017091,2]
[382569362,1756671045066,-2221.98,0.00017091,2]
[382569363,1756671045076,-480.0,0.00017091,2]
[382569364,1756671045085,-480.0,0.00017092,2]
[382569365,1756671045095,-321.45943857,0.00017092,2]
[382569366,1756671045105,-480.0,0.00017092,2]
[382569367,1756671045114,-480.0,0.00017092,2]
[382569368,1756671045123,-300.99974728,0.00017092,2]
[382569369,1756671045133,-480.0,0.00017092,2]
[382569370,1756671045143,-1055.16,0.00017092,2]
[382569371,1756671045152,-151.0,0.00017092,2]
[382569372,1756671045162,-480.0,0.00017092,2]
[382569373,1756671045172,-480.0,0.00017092,2]
[382569374,1756671045182,-151.0,0.00017092,2]
[382569375,1756671045191,-1235.0,0.00017092,2]
[382569376,1756671045201,-480.0,0.00017092,2]
[382569377,1756671045211,-480.0,0.00017092,2]
[382569378,1756671045221,-588.93,0.00017092,2]
[382569379,1756671045230,-905.04,0.00017092,2]
[382569380,1756671045240,-480.0,0.00017092,2]
[382569381,1756671045250,-151.0,0.00017092,2]
[382569382,1756671045259,-151.0,0.00017092,2]
[382569383,1756671045270,-151.0,0.00017092,2]
[382569384,1756671045279,-151.0,0.00017092,2]
[382569385,1756671045289,-480.0,0.00017092,2]
[382569386,1756671045298,-480.0,0.00017092,2]
[382569387,1756671045308,-151.0,0.00017092,2]
[382569388,1756671045321,-483.83681509,0.00017092,2]
[382569389,1756671045331,-480.0,0.00017092,2]
[382569390,1756671045341,-480.0,0.00017092,2]
[382569391,1756671045351,-480.0,0.00017092,2]
[382569392,1756671045360,-151.0,0.00017092,2]
[382569393,1756671045370,-480.0,0.00017092,2]
[382569394,1756671045379,-629.68,0.00017092,2]
[382569395,1756671045389,-508.6,0.00017092,2]
[382569396,1756671045399,-480.0,0.00017092,2]
[382569397,1756671045409,-993.71,0.00017092,2]
[382569398,1756671045419,-480.0,0.00017092,2]
[382569399,1756671045430,-480.0,0.00017092,2]
[382569400,1756671045439,-480.0,0.00017092,2]
[382569401,1756671045449,-515.77808052,0.00017092,2]
[382569402,1756671045460,-151.0,0.00017092,2]
[382569403,1756671045470,-151.0,0.00017092,2]
[382569404,1756671045479,-293.103662,0.00017092,2]
[382569406,1756671045489,-480.0,0.00017092,2]
[382569407,1756671045499,-1236.6,0.00017092,2]
[382569408,1756671045509,-894.15,0.00017092,2]
[382569409,1756671045519,-480.0,0.00017092,2]
[382569410,1756671045529,-539.28,0.00017092,2]
[382569411,1756671045538,-1151.0,0.00017092,2]
[382569413,1756671045548,-480.0,0.00017092,2]
[382569414,1756671045558,-786.13,0.00017092,2]
[382569415,1756671045567,-151.123548,0.00017092,2]
[382569416,1756671045577,-480.0,0.00017092,2]
[382569418,1756671045586,-480.0,0.00017092,2]
[382569420,1756671045596,-620.66,0.00017092,2]
[382569421,1756671045605,-480.0,0.00017092,2]
[382569422,1756671045615,-480.0,0.00017092,2]
[382569423,1756671045624,-151.0,0.00017092,2]
[382569424,1756671045634,-480.0,0.00017092,2]
[382569425,1756671045643,-151.0,0.00017092,2]
[382569426,1756671045653,-151.0,0.00017092,2]
[382569427,1756671045663,-735.1,0.00017092,2]
[382569428,1756671045672,-484.11,0.00017092,2]
[382569429,1756671045682,-599.15,0.00017092,2]
[382569430,1756671045692,-1305.77,0.00017092,2]
[382569431,1756671045701,-1138.9,0.00017092,2]
[382569432,1756671045712,-480.0,0.00017092,2]
[382569433,1756671045722,-480.0,0.00017092,2]
[382569434,1756671045731,-480.0,0.00017092,2]
[382569435,1756671045741,-634.14,0.00017092,2]
[382569436,1756671045751,-151.0,0.00017092,2]
[382569438,1756671045761,-151.0,0.00017092,2]
[382569440,1756671045770,-550.88,0.00017092,2]
[382569441,1756671045779,-480.0,0.00017092,2]
[382569443,1756671045789,-480.0,0.00017092,2]
[382569445,1756671045798,-151.0,0.00017092,2]
[382569446,1756671045807,-480.0,0.00017092,2]
[382569447,1756671045817,-950.65,0.00017092,2]
[382569448,1756671045826,-692.89,0.00017092,2]
[382569449,1756671045836,-151.0,0.00017092,2]
[382569450,1756671045846,-151.0,0.00017092,2]
[382569451,1756671045856,-289.739314,0.00017092,2]
[382569453,1756671045866,-480.0,0.00017092,2]
[382569454,1756671045878,-480.0,0.00017092,2]
[382569455,1756671045888,-480.0,0.00017092,2]
[382569456,1756671045898,-480.0,0.00017092,2]
[382569457,1756671045908,-151.0,0.00017092,2]
[382569458,1756671045921,-700.59,0.00017092,2]
[382569459,1756671045930,-1018.2,0.00017092,2]
[382569460,1756671045940,-480.0,0.00017092,2]
[382569461,1756671045949,-480.0,0.00017092,2]
[382569462,1756671045958,-480.0,0.00017092,2]
[382569463,1756671045968,-480.0,0.00017092,2]
[382569464,1756671045977,-480.0,0.00017092,2]
[382569465,1756671045987,-480.0,0.00017092,2]
[382569466,1756671045996,-480.0,0.00017092,2]
[382569467,1756671046006,-579.56,0.00017092,2]
[382569468,1756671046020,-480.0,0.00017092,2]
[382569469,1756671046029,-151.0,0.00017092,2]
[382569470,1756671046040,-151.0,0.00017092,2]
[382569471,1756671046049,-151.0,0.00017092,2]
[382569472,1756671046059,-480.0,0.00017092,2]
[382569473,1756671046069,-480.0,0.00017092,2]
[382569474,1756671046079,-480.0,0.00017092,2]
[382569475,1756671046088,-480.0,0.00017092,2]
[382569476,1756671046098,-552.93,0.00017092,2]
[382569477,1756671046108,-151.0,0.00017092,2]
[382569478,1756671046117,-480.0,0.00017092,2]
[382569479,1756671046127,-497.84,0.00017092,2]
[382569480,1756671046137,-480.0,0.00017092,2]
[382569481,1756671046147,-151.0,0.00017092,2]
[382569482,1756671046158,-480.0,0.00017092,2]
[382569483,1756671046168,-480.0,0.00017092,2]
[382569484,1756671046177,-480.0,0.00017092,2]
[382569485,1756671046188,-480.0,0.00017092,2]
[382569486,1756671046197,-151.0,0.00017092,2]
[382569488,1756671046207,-924.93,0.00017092,2]
[382569489,1756671046216,-942.82,0.00017092,2]
[382569490,1756671046226,-151.0,0.00017092,2]
[382569491,1756671046236,-524.31,0.00017092,2]
[382569492,1756671046246,-480.0,0.00017092,2]
[382569493,1756671046256,-151.0,0.00017092,2]
[382569494,1756671046270,-151.0,0.00017092,2]
[382569495,1756671046280,-151.0,0.00017092,2]
[382569496,1756671046290,-1191.87,0.00017092,2]
[382569497,1756671046301,-480.0,0.00017092,2]
[382569498,1756671046311,-409.74668676,0.00017092,2]
[382569499,1756671046325,-480.0,0.00017092,2]
[382569500,1756671046334,-989.96,0.00017092,2]
[382569501,1756671046344,-480.0,0.00017092,2]
[382569502,1756671046354,-498.29,0.00017092,2]
[382569503,1756671046366,-480.0,0.00017092,2]
[382569504,1756671046375,-1100.19,0.00017092,2]
[382569505,1756671046385,-210.11775553,0.00017092,2]
[382569506,1756671046394,-875.87,0.00017092,2]
[382569507,1756671046403,-480.0,0.00017092,2]
[382569508,1756671046413,-1101.52,0.00017092,2]
[382569509,1756671046423,-480.0,0.00017092,2]
[382569510,1756671046432,-480.0,0.00017092,2]
[382569511,1756671046442,-962.25,0.00017092,2]
[382569512,1756671046451,-480.0,0.00017092,2]
[382569513,1756671046461,-151.0,0.00017092,2]
[382569514,1756671046471,-151.0,0.00017092,2]
[382569515,1756671046480,-480.0,0.00017092,2]
[382569516,1756671046489,-782.08,0.00017092,2]
[382569517,1756671046499,-578.47,0.00017092,2]
[382569518,1756671046511,-1150.52,0.00017092,2]
[382569519,1756671046521,-480.0,0.00017092,2]
[382569520,1756671046530,-151.0,0.00017092,2]
[382569521,1756671046540,-480.0,0.00017092,2]
[382569522,1756671046549,-151.0,0.00017092,2]
[382569523,1756671046559,-151.0,0.00017092,2]
[382569524,1756671046569,-151.0,0.00017092,2]
[382569525,1756671046578,-1194.36,0.00017092,2]
[382569526,1756671046587,-1101.65,0.00017092,2]
[382569527,1756671046597,-480.0,0.00017092,2]
[382569528,1756671046606,-151.0,0.00017092,2]
[382569529,1756671046616,-480.0,0.00017092,2]
[382569530,1756671046627,-2733.57,0.00017092,2]
[382569531,1756671046636,-480.0,0.00017092,2]
[382569532,1756671046645,-626.94,0.00017092,2]
[382569533,1756671046655,-257.005188,0.00017092,2]
[382569534,1756671046665,-257.005188,0.00017092,2]
[382569535,1756671046675,-257.005188,0.00017092,2]
[382569536,1756671046684,-257.005188,0.00017092,2]
[382569537,1756671046693,-480.0,0.00017092,2]
[382569538,1756671046703,-480.0,0.00017092,2]
[382569539,1756671046713,-2085.34,0.00017092,2]
[382569540,1756671046723,-151.0,0.00017092,2]
[382569541,1756671046733,-151.0,0.00017092,2]
[382569542,1756671046742,-151.0,0.00017092,2]
[382569543,1756671046753,-480.0,0.00017092,2]
[382569544,1756671046762,-151.0,0.00017092,2]
[382569545,1756671046772,-480.0,0.00017092,2]
[382569546,1756671046781,-151.0,0.00017092,2]
[382569547,1756671046793,-480.0,0.00017092,2]
[382569548,1756671046802,-5338.07,0.00017092,2]
[382569549,1756671046812,-480.0,0.00017092,2]
[382569550,1756671046821,-151.0,0.00017092,2]
[382569551,1756671046831,-605.2,0.00017092,2]
[382569552,1756671046840,-1044.89,0.00017092,2]
[382569553,1756671046850,-151.0,0.00017092,2]
[382569554,1756671046860,-480.0,0.00017092,2]
[382569555,1756671046870,-1059.73,0.00017092,2]
[382569556,1756671046880,-1778.02,0.00017092,2]
[382569557,1756671046889,-480.0,0.00017092,2]
[382569558,1756671046899,-480.0,0.00017092,2]
[382569559,1756671046909,-480.0,0.00017092,2]
[382569560,1756671046918,-480.0,0.00017092,2]
[382569561,1756671046927,-1028.65,0.00017092,2]
[382569562,1756671046939,-619.53,0.00017092,2]
[382569563,1756671046950,-480.0,0.00017092,2]
[382569564,1756671046960,-480.0,0.00017092,2]
[382569565,1756671046979,-480.0,0.00017092,2]
[382569566,1756671046988,-1217.24,0.00017092,2]
[382569567,1756671046999,-480.0,0.00017092,2]
[382569568,1756671047009,-480.0,0.00017092,2]
[382569569,1756671047018,-596.58,0.00017092,2]
[382569570,1756671047028,-591.02,0.00017092,2]
[382569571,1756671047037,-499.41,0.00017092,2]
[382569572,1756671047048,-1252.17,0.00017092,2]
[382569573,1756671047058,-4088.69,0.00017092,2]
[382569574,1756671047067,-151.0,0.00017092,2]
[382569575,1756671047077,-705.82,0.00017092,2]
[382569576,1756671047087,-480.0,0.00017092,2]
[382569577,1756671047097,-151.343345,0.00017092,2]
[382569578,1756671047107,-151.0,0.00017092,2]
[382569579,1756671047117,-151.0,0.00017092,2]
[382569580,1756671047126,-480.0,0.00017092,2]
[382569581,1756671047137,-633.58,0.00017092,2]
[382569582,1756671047147,-480.0,0.00017092,2]
[382569583,1756671047156,-480.0,0.00017092,2]
[382569584,1756671047166,-804.74,0.00017092,2]
[382569585,1756671047177,-151.0,0.00017092,2]
[382569586,1756671047188,-480.0,0.00017092,2]
[382569587,1756671047198,-151.0,0.00017092,2]
[382569588,1756671047208,-480.0,0.00017092,2]
[382569589,1756671047217,-151.0,0.00017092,2]
[382569590,1756671047227,-480.0,0.00017092,2]
[382569591,1756671047237,-151.0,0.00017092,2]
[382569592,1756671047299,-152.778142,0.00017092,2]
[382569593,1756671047309,-480.0,0.00017092,2]
[382569594,1756671047321,-480.0,0.00017092,2]
[382569595,1756671047331,-184.038744,0.00017092,2]
[382569596,1756671047341,-480.0,0.00017092,2]
[382569597,1756671047350,-151.0,0.00017092,2]
[382569598,1756671047359,-480.0,0.00017092,2]
[382569599,1756671047370,-151.0,0.00017092,2]
[382569600,1756671047380,-151.0,0.00017092,2]
[382569601,1756671047390,-504.63,0.00017092,2]
[382569602,1756671047400,-192.182341,0.00017092,2]
[382569603,1756671047410,-151.0,0.00017092,2]
[382569604,1756671047419,-192.182341,0.00017092,2]
[382569605,1756671047428,-480.0,0.00017092,2]
[382569606,1756671047438,-893.23,0.00017092,2]
[382569607,1756671047447,-192.182341,0.00017092,2]
[382569608,1756671047456,-192.182341,0.00017092,2]
[382569609,1756671047466,-151.0,0.00017093,2]
[382569610,1756671047475,-151.0,0.00017093,2]
[382569611,1756671047485,-480.0,0.00017093,2]
[382569612,1756671047494,-1188.69,0.00017093,2]
[382569613,1756671047503,-838.4,0.00017093,2]
[382569614,1756671047513,-1235.25,0.00017093,2]
[382569615,1756671047522,-604.07,0.00017093,2]
[382569616,1756671047532,-480.0,0.00017093,2]
[382569617,1756671047542,-632.88,0.00017093,2]
[382569618,1756671047551,-480.0,0.00017093,2]
[382569619,1756671047561,-480.0,0.00017093,2]
[382569620,1756671047571,-784.94,0.00017093,2]
[382569621,1756671047581,-480.0,0.00017093,2]
[382569622,1756671047590,-678.61,0.00017093,2]
[382569623,1756671047602,-480.0,0.00017093,2]
[382569624,1756671047612,-480.0,0.00017093,2]
[382569625,1756671047621,-199.450143,0.00017093,2]
[382569626,1756671047631,-152.0,0.00017093,2]
[382569627,1756671047640,-963.03,0.00017093,2]
[382569628,1756671047649,-794.58,0.00017093,2]
[382569629,1756671047659,-151.0,0.00017093,2]
[382569630,1756671047669,-480.0,0.00017093,2]
[382569631,1756671047679,-151.0,0.00017093,2]
[382569632,1756671047689,-151.0,0.00017093,2]
[382569633,1756671047698,-226.906472,0.00017093,2]
[382569634,1756671047708,-480.0,0.00017093,2]
[382569635,1756671047718,-257.005188,0.00017093,2]
[382569636,1756671047727,-257.005188,0.00017093,2]
[382569637,1756671047737,-257.005188,0.00017093,2]
[382569638,1756671047747,-257.005188,0.00017093,2]
[382569639,1756671047757,-151.0,0.00017093,2]
[382569640,1756671047769,-480.0,0.00017093,2]
[382569641,1756671047779,-151.0,0.00017093,2]
[382569642,1756671047789,-151.0,0.00017093,2]
[382569643,1756671047800,-901.65,0.00017093,2]
[382569644,1756671047811,-236.532408,0.00017093,2]
[382569645,1756671047820,-1583.33,0.00017093,2]
[382569646,1756671047830,-480.0,0.00017093,2]
[382569647,1756671047839,-151.0,0.00017093,2]
[382569648,1756671047848,-219.579642,0.00017093,2]
[382569649,1756671047858,-480.0,0.00017093,2]
[382569650,1756671047867,-480.0,0.00017093,2]
[382569651,1756671047876,-652.12,0.00017093,2]
[382569652,1756671047885,-480.0,0.00017093,2]
[382569653,1756671047895,-480.0,0.00017093,2]
[382569654,1756671047904,-480.0,0.00017093,2]
[382569655,1756671047914,-575.16,0.00017093,2]
[382569656,1756671047923,-480.0,0.00017093,2]
[382569657,1756671047932,-480.0,0.00017093,2]
[382569658,1756671047942,-151.0,0.00017093,2]
[382569659,1756671047951,-692.11,0.00017095,2]
[382569660,1756671047960,-480.0,0.00017095,2]
[382569661,1756671047970,-500.0,0.00017095,2]
[382569662,1756671047979,-151.0,0.00017095,2]
[382569663,1756671047988,-480.0,0.00017095,2]
[382569664,1756671047997,-480.0,0.00017095,2]
[382569665,1756671048011,-480.0,0.00017095,2]
[382569666,1756671048020,-480.0,0.00017095,2]
[382569667,1756671048030,-151.0,0.00017095,2]
[382569668,1756671048040,-480.0,0.00017095,2]
[382569669,1756671048050,-603.95,0.00017095,2]
[382569670,1756671048059,-151.0,0.00017095,2]
[382569671,1756671048069,-151.0,0.00017095,2]
[382569672,1756671048079,-480.0,0.00017095,2]
[382569673,1756671048088,-480.0,0.00017095,2]
[382569674,1756671048098,-151.0,0.00017095,2]
[382569675,1756671048107,-707.41,0.00017095,2]
[382569676,1756671048117,-820.24,0.00017095,2]
[382569677,1756671048127,-480.0,0.00017095,2]
[382569678,1756671048136,-480.0,0.00017095,2]
[382569679,1756671048145,-480.0,0.00017095,2]
[382569680,1756671048155,-513.23,0.00017095,2]
[382569681,1756671048165,-151.0,0.00017095,2]
[382569682,1756671048175,-151.0,0.00017095,2]
[382569683,1756671048186,-480.0,0.00017095,2]
[382569684,1756671048197,-612.43,0.00017095,2]
[382569685,1756671048208,-823.57,0.00017095,2]
[382569686,1756671048218,-480.0,0.00017095,2]
[382569687,1756671048228,-995.41,0.00017095,2]
[382569688,1756671048238,-151.0,0.00017095,2]
[382569689,1756671048247,-151.0,0.00017095,2]
[382569690,1756671048256,-151.0,0.00017095,2]
[382569691,1756671048267,-625.51,0.00017095,2]
[382569692,1756671048277,-151.0,0.00017095,2]
[382569693,1756671048286,-151.0,0.00017095,2]
[382569694,1756671048296,-151.0,0.00017095,2]
[382569695,1756671048306,-151.0,0.00017095,2]
[382569696,1756671048319,-1293.23,0.00017095,2]
[382569697,1756671048329,-1067.0,0.00017095,2]
[382569698,1756671048338,-480.0,0.00017095,2]
[382569699,1756671048348,-514.59,0.00017095,2]
[382569700,1756671048357,-151.0,0.00017095,2]
[382569701,1756671048382,-515.04,0.00017095,2]
[382569702,1756671048392,-725.84,0.00017095,2]
[382569703,1756671048401,-480.0,0.00017095,2]
[382569704,1756671048410,-151.0,0.00017095,2]
[382569705,1756671048420,-151.0,0.00017095,2]
[382569706,1756671048429,-480.0,0.00017095,2]
[382569707,1756671048439,-151.0,0.00017095,2]
[382569708,1756671048449,-486.39,0.00017095,2]
[382569709,1756671048458,-480.0,0.00017095,2]
[382569710,1756671048468,-480.0,0.00017095,2]
[382569711,1756671048477,-151.0,0.00017095,2]
[382569712,1756671048487,-200.0,0.00017095,3]
[382569713,1756671048496,-200.0,0.00017095,3]
[382569714,1756671048506,-200.0,0.00017095,3]
[382569715,1756671048516,-200.0,0.00017095,3]
[382569716,1756671048525,-200.0,0.00017095,3]
[382569717,1756671048536,-480.0,0.00017095,2]
[382569718,1756671048546,-480.0,0.00017095,2]
[382569719,1756671048556,-480.0,0.00017095,2]
[382569720,1756671048565,-155.599794,0.00017095,2]
[382569721,1756671048574,-151.0,0.00017095,2]
[382569722,1756671048584,-480.0,0.00017095,2]
[382569723,1756671048593,-568.06,0.00017095,2]
[382569724,1756671048603,-480.0,0.00017095,2]
[382569725,1756671048612,-581.43,0.00017095,2]
[382569726,1756671048622,-480.0,0.00017095,2]
[382569727,1756671048632,-480.0,0.00017095,2]
[382569728,1756671048642,-480.0,0.00017095,2]
[382569729,1756671048653,-652.14,0.00017095,2]
[382569730,1756671048663,-151.0,0.00017095,2]
[382569731,1756671048673,-151.0,0.00017095,2]
[382569732,1756671048682,-151.0,0.00017095,2]
[382569733,1756671048692,-548.02,0.00017095,2]
[382569734,1756671048701,-151.0,0.00017095,2]
[382569735,1756671048712,-151.0,0.00017095,2]
[382569736,1756671048721,-160.16710454,0.00017095,2]
[382569737,1756671048731,-280.615118,0.00017095,2]
[382569738,1756671048741,-1000.0,0.00017095,2]
[382569739,1756671048751,-1000.0,0.00017095,2]
[382569740,1756671048761,-1000.0,0.00017095,2]
[382569741,1756671048771,-1000.0,0.00017095,2]
[382569742,1756671048781,-1000.0,0.00017095,2]
[382569743,1756671048791,-1000.0,0.00017095,2]
[382569744,1756671048801,-1000.0,0.00017095,2]
[382569745,1756671048811,-1000.0,0.00017095,2]
[382569746,1756671048821,-1000.0,0.00017095,2]
[382569747,1756671048831,-1000.0,0.00017095,2]
[382569748,1756671048840,-1000.0,0.00017095,2]
[382569749,1756671048850,-1000.0,0.00017095,2]
[382569750,1756671048860,-1000.0,0.00017095,2]
[382569751,1756671048869,-1000.0,0.00017095,2]
[382569752,1756671048879,-1000.0,0.00017095,2]
[382569753,1756671048889,-1000.0,0.00017095,2]
[382569754,1756671048900,-1000.0,0.00017095,2]
[382569755,1756671048909,-1000.0,0.00017095,2]
[382569756,1756671048919,-1000.0,0.00017095,2]
[382569757,1756671048929,-1000.0,0.00017095,2]
[382569758,1756671048939,-1000.0,0.00017095,2]
[382569759,1756671048949,-1000.0,0.00017095,2]
[382569760,1756671048959,-1000.0,0.00017095,2]
[382569761,1756671048969,-1000.0,0.00017095,2]
[382569762,1756671048980,-868.837679,0.00017095,2]
[382569763,1756671048990,-151.0,0.00017095,2]
[382569764,1756671049000,-170.555053,0.00017095,2]
[382569765,1756671049010,-151.0,0.00017095,2]
[382569766,1756671049020,-192.182341,0.00017095,2]
[382569767,1756671049030,-192.182341,0.00017095,2]
[382569768,1756671049040,-192.182341,0.00017095,2]
[382569769,1756671049050,-192.182341,0.00017095,2]
[382569770,1756671049060,-151.0,0.000171,2]
[382569771,1756671049070,-151.0,0.000171,2]
[382569772,1756671049080,-480.0,0.00017101,2]
[382569773,1756671049090,-480.0,0.00017101,2]
[382569774,1756671049100,-893.93,0.00017101,2]
[382569775,1756671049110,-1051.96,0.00017101,2]
[382569776,1756671049120,-480.0,0.00017101,2]
[382569777,1756671049130,-500.0,0.00017102,2]
[382569778,1756671049144,-480.0,0.00017102,2]
[382569779,1756671049158,-903.33,0.00017102,2]
[382569780,1756671049169,-609.2482364,0.00017102,2]
[382569781,1756671049179,-480.0,0.00017102,2]
[382569782,1756671049189,-480.0,0.00017102,2]
[382569783,1756671049199,-482.0,0.00017102,2]
[382569784,1756671049208,-480.0,0.00017102,2]
[382569785,1756671049218,-480.0,0.00017102,2]
[382569786,1756671049228,-480.0,0.00017102,2]
[382569787,1756671049238,-611.39036016,0.00017102,2]
[382569788,1756671049248,-576.2,0.00017102,2]
[382569789,1756671049258,-480.0,0.00017102,2]
[382569790,1756671049270,-1328.69,0.00017102,2]
[382569791,1756671049280,-480.0,0.00017102,2]
[382569792,1756671049290,-480.0,0.00017102,2]
[382569793,1756671049300,-480.0,0.00017102,2]
[382569794,1756671049309,-486.61,0.00017102,2]
[382569795,1756671049319,-480.0,0.00017102,2]
[382569796,1756671049330,-480.0,0.00017102,2]
[382569797,1756671049340,-621.93,0.00017102,2]
[382569798,1756671049350,-716.06,0.00017102,2]
[382569799,1756671049361,-668.92,0.00017102,2]
[382569800,1756671049371,-480.0,0.00017102,2]
[382569801,1756671049382,-933.79,0.00017102,2]
[382569802,1756671049393,-994.72,0.00017102,2]
[382569803,1756671049404,-649.19,0.00017102,2]
[382569804,1756671049414,-742.31,0.00017102,2]
[382569805,1756671049424,-480.0,0.00017102,2]
[382569806,1756671049435,-480.0,0.00017102,2]
[382569807,1756671049444,-480.0,0.00017102,2]
[382569808,1756671049455,-480.0,0.00017102,2]
[382569809,1756671049465,-1478.23,0.00017102,2]
[382569810,1756671049475,-480.0,0.00017102,2]
[382569811,1756671049485,-480.0,0.00017102,2]
[382569812,1756671049495,-480.0,0.00017102,2]
[382569813,1756671049505,-480.0,0.00017102,2]
[382569814,1756671049515,-201.455727,0.00017102,2]
[382569815,1756671049526,-151.0,0.00017102,2]
[382569816,1756671049535,-151.0,0.00017102,2]
[382569817,1756671049545,-788.99,0.00017102,2]
[382569818,1756671049555,-528.44,0.00017102,2]
[382569819,1756671049564,-657.92,0.00017102,2]
[382569820,1756671049574,-480.0,0.00017102,2]
[382569821,1756671049584,-480.0,0.00017102,2]
[382569822,1756671049594,-257.005188,0.00017102,2]
[382569823,1756671049604,-257.005188,0.00017102,2]
[382569824,1756671049614,-480.0,0.00017102,2]
[382569825,1756671049625,-257.005188,0.00017102,2]
[382569826,1756671049635,-257.005188,0.00017102,2]
[382569827,1756671049645,-480.0,0.00017102,2]
[382569828,1756671049654,-1131.2,0.00017102,2]
[382569829,1756671049665,-151.0,0.00017102,2]
[382569830,1756671049677,-151.0,0.00017102,2]
[382569831,1756671049688,-151.0,0.00017102,2]
[382569832,1756671049700,-596.78,0.00017102,2]
[382569833,1756671049712,-480.0,0.00017102,2]
[382569834,1756671049722,-480.0,0.00017102,2]
[382569835,1756671049733,-865.32,0.00017102,2]
[382569836,1756671049743,-480.0,0.00017102,2]
[382569837,1756671049753,-603.5,0.00017102,2]
[382569838,1756671049765,-480.0,0.00017102,2]
[382569839,1756671049775,-480.0,0.00017102,2]
[382569840,1756671049786,-480.0,0.00017102,2]
[382569841,1756671049796,-151.0,0.00017102,2]
[382569842,1756671049806,-890.22,0.00017102,2]
[382569843,1756671049816,-480.0,0.00017102,2]
[382569844,1756671049826,-1858.6,0.00017102,2]
[382569845,1756671049836,-480.0,0.00017102,2]